Cogmind - Beta 13 @@@ ROGUE MODE // 2024.07.24 @ 20:38:38 Player: Johnny5001 Result: Destroyed by V9-6D0(R) with Subdweller Beam Cannon Performance ------------- Evolutions (0) 0 Regions Visited (2) 400 Robots Destroyed (28) 140 Value Destroyed (851) 851 Prototype IDs (0) 0 Alien Tech Used (0) 0 Bonus (0) 0 TOTAL SCORE: 1391 Bonus ------- None Cogmind --------- Core Integrity 0/250 Matter 290/300 Energy 265/265 System Corruption 0% Temperature Cool (9) Movement Rolling (105) Ox1 Location -10/Subcaves Parts ------- > --- POWER (1) -------- Improved Ion Engine > --- PROPULSION (2) --- Armored Wheel Armored Wheel > --- UTILITY (2) ------ Scrap Shield > --- WEAPON (2) ------- Makeshift Laser Makeshift Spear > --- INVENTORY (5) ---- Armored Wheel Subdweller Monowheel Makeshift Spear Scrap Shield Fragment (46) Peak State ------------ > --- POWER ------------ Improved Ion Engine > --- PROPULSION ------- Armored Wheel Armored Wheel > --- UTILITY ---------- Humpback > --- WEAPON ----------- Heavy EM Pulse Gun Makeshift Spear > --- INVENTORY -------- Improved Ion Engine Improved Ion Engine Subdweller Power Source Light Treads Armored Wheel Armored Wheel Subdweller Monowheel Subdweller Monowheel Subdweller Monowheel Disposable Heat Sink Disposable Heat Sink Disposable Heat Sink Small Storage Unit Humpback Medium Matter Pod Subdweller Optics Subdweller Optics Scrap Shield Subdweller Laser Subdweller Machine Gun Shrapnel Trap Scrap Shield Fragment Scrap Shield Fragment Scrap Shield Fragment Scrap Shield Fragment Scrap Shield Fragment Scrap Shield Fragment [Rating: 19] Favorites ----------- Power Improved Ion Engine Engine Improved Ion Engine Propulsion Armored Wheel Treads Light Treads Leg Aluminum Leg Wheel Armored Wheel Utility Scrap Shield Storage Small Storage Unit Protection Scrap Shield Weapon Makeshift Spear Energy Gun Heavy EM Pulse Gun Ballistic Gun Assault Rifle Launcher Grenade Launcher Piercing Weapon Makeshift Spear Build | -11 -10 -10 ------- Run | Yrd Mat Sub Slots Evolved . | . . . Power . | . . . Propulsion . | . . . Utility . | . . . Weapon . | . . . Parts Attached 23 | 2 9 12 Power 3 | . 2 1 Engine 3 | . 2 1 Core . | . . . Reactor . | . . . Propulsion 5 | 2 . 3 Treads 2 | 2 . . Leg . | . . . Wheel 3 | . . 3 Hover . | . . . Flight . | . . . Utility 5 | . . 5 Device . | . . . Storage 1 | . . 1 Processor . | . . . Hackware . | . . . Protection 4 | . . 4 Artifact . | . . . Weapon 10 | . 7 3 Energy Gun 6 | . 5 1 Energy Cannon . | . . . Ballistic Gun . | . . . Ballistic Cannon . | . . . Launcher 2 | . 2 . Special Weapon . | . . . Impact Weapon . | . . . Slashing Weapon . | . . . Piercing Weapon 2 | . . 2 Special Melee Weapon . | . . . Unidentified Prototypes . | . . . Parts Lost 7 | . 2 5 Power 1 | . . 1 Propulsion 2 | . . 2 Utility . | . . . Weapon 4 | . 2 2 Highest Loss Streak 2 | . 2 2 To Critical Strikes . | . . . Average Slot Usage (%) 83 | . 84 83 Engine 14 | . 14 14 Treads 8 | . 28 1 Wheel 19 | . . 26 Storage 6 | . 14 4 Protection 7 | . . 9 Energy Gun 16 | . 25 13 Piercing Weapon 9 | . . 12 Naked Turns . | . . . Heaviest Build 212 | 11 18 212 Greatest Support 40 | 40 40 40 Greatest Overweight (x) 8 | . . 8 Average Overweight (x) 2 | . . 2 Largest Inventory Capacity 35 | 8 8 35 Average Capacity 11 | 8 8 12 Most Carried 35 | 6 8 35 Average Carried 8 | 6 6 9 Final Capacity 8 | 8 8 5 Final Carried 7 | 6 7 4 Class Distribution -------------------- 81% | Mutant 18% | Hauler-Mutant Dominant Class ---------------- Mutant | -10/Materials Mutant | -10/Subcaves Resources | -11 -10 -10 ----------- Run | Yrd Mat Sub Matter Collected 570 | 206 176 188 Remotely . | . . . Salvage Created 920 | . 409 511 Parts 76 | . 37 39 Haulers Intercepted . | . . . Recyclers Shooed . | . . . Parts Field Recycled . | . . . Retrieved Matter . | . . . Parts Self-Destructed 7 | . . 7 Prevented . | . . . Kills | -11 -10 -10 ------- Run | Yrd Mat Sub Combat Hostiles Destroyed 25 | . 11 14 Melee 11 | . . 11 Guns 8 | . 6 2 AOE 5 | . 5 . Classes Destroyed 5 | . 4 1 Worker 1 | . 1 . Watcher 2 | . 2 . Swarmer 6 | . 3 3 Grunt 8 | . 8 . Subdweller 11 | . . 11 Best Kill Streak 7 | . 7 3 Combat Bots Only 7 | . 7 3 Max Kills in Single Turn 2 | . 2 1 Gunslinging . | . . . Exploded 2 | . 2 . Melee 1 | . . 1 Uniques/NPCs Destroyed . | . . . Combat | -11 -10 -10 -------- Run | Yrd Mat Sub Hostile Shots Fired 139 | . 38 101 Missed 37 | . 11 26 Damage Taken 1826 | . 394 1432 Core 275 | . 69 206 Absorbed by Shields . | . . . Core Remaining (%) 100 | 100 . . Volleys Fired 41 | . 15 26 Largest 2 | . 2 2 Hottest 90 | . 90 90 Shots Fired 60 | . 30 30 Gun 56 | . 26 30 Cannon . | . . . Launcher 4 | . 4 . Special . | . . . Kinetic . | . . . Thermal 1 | . . 1 Explosive 4 | . 4 . Electromagnetic 55 | . 26 29 Robot Hit Streak 7 | . 5 7 Robot Miss Streak 2 | . 1 2 Penetration Max . | . . . Secondary Targets 2 | . 2 . Max Gunslinging Chain 1 | . 1 . Shots Hit Robots 68 | . 17 51 Core Hits 34 | . 17 17 Critical Kills . | . . . Critical Parts Destroyed . | . . . Critical Strikes 4 | . . 4 Corrupt 1 | . . 1 Impale 3 | . . 3 Melee Attacks 57 | . . 57 Impact . | . . . Slashing . | . . . Piercing 57 | . . 57 Sneak Attacks . | . . . Combat Hostiles . | . . . Follow-up Attacks . | . . . Damage Inflicted 1646 | . 588 1058 Guns 484 | . 246 238 Cannons . | . . . Explosions 342 | . 342 . Melee 820 | . . 820 Ramming . | . . . Kinetic . | . . . Thermal 142 | . 142 . Explosive 200 | . 200 . Electromagnetic 484 | . 246 238 Impact . | . . . Slashing . | . . . Piercing 820 | . . 820 Highest Corruption . | . . . Average Corruption . | . . . Corruption Purged . | . . . Corruption Blocked . | . . . Overload Shots . | . . . Overflow Damage 78 | . 4 74 Projectiles . | . . . Explosions 4 | . 4 . Melee 74 | . . 74 Knockbacks . | . . . Impact . | . . . Kinetic . | . . . Secondary . | . . . Self-Inflicted Damage 45 | . 45 . Shots 3 | . 3 . Rammed . | . . . Targets Rammed . | . . . Kicked . | . . . Crushed . | . . . Highest Temperature 242 | . 188 242 Average Temperature 68 | . 61 129 Received Heat Transfer 597 | . 129 468 Siege Activations . | . . . Robots Corrupted 1 | . . 1 Combat Hostiles 1 | . . 1 Parts Fried 2 | . 1 1 Impact Corruptions . | . . . Robots Melted . | . . . Combat Hostiles . | . . . Parts Melted 2 | . . 2 Heat Transferred 250 | . 250 . Parts Sabotaged . | . . . Parts Stolen . | . . . Parts Stripped . | . . . Power Chain Reactions 2 | . 2 . Alert | -11 -10 -10 ------- Run | Yrd Mat Sub Peak Influence 219 | . 219 . Initial . | . . . Average 52 | . 53 . Maximum Alert Level 1 | . 1 . Low Security (%) 98 | 100 98 . Level 1 1 | . 1 . Level 2 . | . . . Level 3 . | . . . Level 4 . | . . . Level 5 . | . . . High Security . | . . . Max Security . | . . . Squads Dispatched 1 | . 1 . Investigation . | . . . Extermination . | . . . Reinforcement 1 | . 1 . Assault . | . . . Garrison . | . . . Intercept . | . . . Searches Triggered . | . . . Construction Impeded . | . . . Haulers Reinforced . | . . . Active Scanning Responses . | . . . Cargo Convoy Interrupts . | . . . Stealth | -11 -10 -10 --------- Run | Yrd Mat Sub Distress Signals 1 | . 1 . Communications Jammed . | . . . Distress Signals . | . . . Times Spotted 28 | . 13 15 Peak Tracking Total 7 | . 7 3 Tactical Retreats . | . . . Traps | -11 -10 -10 ------- Run | Yrd Mat Sub Traps Triggered 2 | . 1 1 Indirectly . | . . . Trap Hack Attempts . | . . . Triggered . | . . . Disarmed . | . . . Reprogrammed . | . . . Reused 1 | . . 1 Traps Extracted . | . . . Installed 1 | . . 1 Triggered 1 | . . 1 Most Traps Carried 1 | . . 1 Machines | -11 -10 -10 ---------- Run | Yrd Mat Sub Machines Disabled 2 | . 2 . Max in Single Turn 1 | . 1 . Machines Repaired . | . . . Machines Dismantled . | . . . Machines Sabotaged . | . . . Overloaded Fab Kills . | . . . Hacking | -11 -10 -10 --------- Run | Yrd Mat Sub Machines Accessed 3 | . 3 . Terminals 3 | . 3 . Fabricators . | . . . Repair Stations . | . . . Recycling Units . | . . . Scanalyzers . | . . . Garrison Access . | . . . Total Hacks 24 | . 24 . Successful 17 | . 17 . Failed 7 | . 7 . Catastrophic . | . . . Database Lockouts . | . . . Manual 12 | . 12 . Terminals 24 | . 24 . Fabricators . | . . . Repair Stations . | . . . Recycling Units . | . . . Scanalyzers . | . . . Garrison Access . | . . . Terminal Hacks 12 | . 12 . Record 3 | . 3 . Emergency Access Points 2 | . 2 . Alert Level 1 | . 1 . Unreport Threat 1 | . 1 . Locate Traps 1 | . 1 . Dispatch Records 1 | . 1 . Registered Components 1 | . 1 . Zone Layout 2 | . 2 . Fabricator Hacks . | . . . Repair Station Hacks . | . . . Recycling Unit Hacks . | . . . Scanalyzer . | . . . Garrison Access Hacks . | . . . Unauthorized Hacks 5 | . 5 . Terminals 5 | . 5 . Track 2 | . 2 . Botnet 2 | . 2 . Operators 1 | . 1 . Fabricators . | . . . Repair Stations . | . . . Recycling Units . | . . . Scanalyzers . | . . . Garrison Access . | . . . Data Cores Recovered . | . . . Used . | . . . Hacking Detections 3 | . 3 . Full Trace Events . | . . . Feedback Events . | . . . Feedback Blocked . | . . . Robot Schematics Acquired . | . . . Robots Built . | . . . Authchips . | . . . Time . | . . . Total Robot Build Rating . | . . . Part Schematics Acquired . | . . . Parts Built . | . . . Authchips . | . . . Time . | . . . Total Part Build Rating . | . . . Parts Repaired . | . . . Time . | . . . Parts Recycled . | . . . Recycled Matter . | . . . Retrieved Matter . | . . . Retrieved Components . | . . . Parts Scanalyzed . | . . . Part Schematics Acquired . | . . . Parts Damaged . | . . . Bothacking | -11 -10 -10 ------------ Run | Yrd Mat Sub Used RIF Installer . | . . . Robots Hacked . | . . . Non-combat . | . . . Combat . | . . . Robot Hacks Applied . | . . . Relay Couplers Released . | . . . Fabnet Peak Effective % . | . . . Robots Rewired . | . . . Allies Hacked . | . . . Hacks Repelled . | . . . Allies | -11 -10 -10 -------- Run | Yrd Mat Sub Total Allies . | . . . Largest Group . | . . . Highest-Rated Group . | . . . Highest-Rated Ally . | . . . Total Orders . | . . . Ally Attacks . | . . . Total Damage . | . . . Kills . | . . . Allies Corrupted . | . . . Allies Melted . | . . . Intel | -11 -10 -10 ------- Run | Yrd Mat Sub Robot Analysis Total . | . . . Derelict Logs Recovered 1 | . . 1 Drone Launches . | . . . Drone Recoveries . | . . . Exploration | -11 -10 -10 ------------- Run | Yrd Mat Sub Turns Passed 2715 | 7 687 2021 Spaces Moved 1044 | 3 171 870 Core . | . . . Treads 204 | 3 171 30 Legs . | . . . Wheels 840 | . . 840 Hover . | . . . Flight . | . . . Fastest Speed 90 | 160 160 90 Average Speed 134 | 160 160 129 Slowest Speed 210 | 160 160 210 Overloaded Moves . | . . . Propulsion Burnouts . | . . . Robots Hopped . | . . . Cave-ins Triggered . | . . . Exploration Rate (%) 31 | 2 34 59 Regions Visited 2 Branch Regions 1 Pre-discovered Areas . | . . . Known Exits Taken . | . . . Unknown Exits Taken 2 | 1 1 . Scrap Searched 7 | . . 7 Spaces Dug 2 | . . 2 Terrain Destroyed 36 | . 34 2 Melee 2 | . . 2 Projectile . | . . . AOE 34 | . 34 . Terrain Rammed . | . . . Walls Destroyed . | . . . Machines Disabled . | . . . Actions | -11 -10 -10 --------- Run | Yrd Mat Sub Total 2242 | 4 557 1681 Wait 998 | . 346 652 Move 1042 | 2 170 870 Hop . | . . . Pick Up 49 | . 8 41 Fast Attach 7 | . 2 5 Attach 8 | . 2 6 Detach . | . . . Swap 8 | 2 5 1 Drop 22 | . 9 13 Fire 41 | . 15 26 Melee 57 | . . 57 Ram . | . . . Kick . | . . . Crush . | . . . Escape Stasis . | . . . Rewire . | . . . Trap 1 | . . 1 Miscellaneous 9 | . . 9 Route ------- -11/Scrapyard -10/Materials (discovered 2 exits: [*Mat] / [*Sub]) -10/Subcaves (discovered 3 exits: [*Mat x2] / Rec) History --------- Turn | Location | Event 4 | -11/Scrapyard | Discovered new exit (range 2) 8 | -11/Scrapyard | Entered Materials 189 | -10/Materials | Destroyed 7 combat bots 279 | -10/Materials | Discovered new exit (range 6) 311 | -10/Materials | Build established: Mutant 666 | -10/Materials | Discovered new exit (range 7) 695 | -10/Materials | Entered Subcaves 706 | -10/Subcaves | Identified exit to Recycling 836 | -10/Subcaves | Core integrity fell below 50% 1074 | -10/Subcaves | Build established: Hauler-Mutant 1138 | -10/Subcaves | Discovered new exit (range 8) 1438 | -10/Subcaves | Core integrity fell below 20% 1571 | -10/Subcaves | Build established: Mutant 2182 | -10/Subcaves | Shifting Twisted Machinery released Mak. Leg 2183 | -10/Subcaves | Discovered new exit (range 5) 2190 | -10/Subcaves | Shifting Twisted Machinery released Mak. Light Armor Plating 2275 | -10/Subcaves | Disturbed a concealed Subdweller 2716 | -10/Subcaves | Destroyed by V9-6D0(R) with Subdweller Beam Cannon Last Messages --------------- 02473_ Scrap Shield Fragment affixed to Scrap Shield (+21). 02480_ Triggered Piercing Trap. 02480_ Spikes shoot up from the floor. 02480_ Critical hit (Impale). 02484_ Searching scrap... 02484_ Found Mak. Spear. 02484_ Found Sub. Power Source. 02484_ Found 43 Matter. 02619_ Searching scrap... 02619_ Found Sub. Power Source. 02619_ Found 16 Matter. 02633_ Acquired 10 matter. 02641_ Subatomizers dissect the Disposable Heat Sink. 02685_ V9-6D0(R): "SUBMAD!" 02701_ Arm. Wheel destroyed. 02707_ V9-6D0(R) suffers critical hit (Impale). 02711_ Destroyed Scrap Shield. Map ----- +----------------------------------------------------+ | ??????????????# #??###%#"" ##???????????? | | ??????????????#" ##?#"! ###" ## ####????????? | | ??????????????#" "###" ## ## #????????? | | ??????????????##" &%![ # "## " ##????????? | | ???????????????##"* ""##""## """ #?????????? | | ????????????????#######?### """"" ###?????????? | | ??????????????????????????# """ #???????????? | | ??????????????????????????# "! ##???????????? | | ??????????????????????????# ### #????????????? | | ??????????????????????????# ## "#????????????? | | ??????????????????????????### ### ##????????????? | | ??????????????????????????## ## "##???????????? | | ??????????????????????????# " ##??????????? | | ?????????????????????????## ="" #??????????? | | ?????????????????????????# <" ###??????????? | | ?????????????????????????### " #????????????? | | ???????????????????????????# "## ##???????????? | | ???????????????????????????## "### #???????????? | | ????????????????????????????###### #???????????? | | ???????????? =??????????????????# ##???????????? | | ???????????? ###?????????????## #???????????? | | ????????????# #????????????# ##???????????? | | ???????????## ???????#??## #???????????? | | ???????????? #####;#### #???????????? | | ?????????????????# # ; ## ###?????????? | | ???????????????????# @ #?????????? | | ???????????????????## R % ##?????????? | | ????????????????????##### ### ##??????????? | | ????????????????????????# ?# ####????????? | | ????????????????????????## ### ##### #????????? | | ????????????????????????# ### ### ##????????? | | ?????????????????????????# ## #?????????? | | ?????????????????????????## ## #?????????? | | ????????????????????????###### ## #?????????? | | ????????????????????????# ## ##????????? | | ????????????????????????# #????????? | | ???????????????????????## ##????????? | | ???????????????????????# ##?????????? | | ????????????????????????# #??????????? | | ????????????????????????# *%= ## #??????????? | | ???????????????????????## ######??????????? | | ???????????????????????# ##??????????????? | | ??????????????????????## ##?????????????? | | ??????????????????????#" #?????????????? | | ???????????????????# ## #?????????????? | | ???????????????????# ??# #?????????????? | | ???????????????????# #"???## ##?????????????? | | ???????????????????????#" # #?####?????????? | | ???????????????????????# ### #?????????? | | ???????????????????????## ## ##????????? | +----------------------------------------------------+ Best States ------------- Heat Dissipation 25 Energy Generation 12 Energy Capacity 265 Matter Stores 300 Matter Capacity 300 Sight Range 16 Terrain Scan Density 10 Armor Coverage 800 Resistance: KI 10 Evasion (%) 40 Recoil Reduction 2 Item Schematics ----------------- None Robot Schematics ------------------ None Fabricated ------------ Nothing Alien Tech Used ----------------- None Achievements -------------- Packrat Challenges ------------ None Game ------ Seed TripodRocketLink Manual? 0 Play Time 00:19:57 Cumulative 61.0 hours Start 2024.07.24 @ 20:19:37 End 2024.07.24 @ 20:38:38 Sessions 1 Manual Loads 0 Difficulty Rogue Special Mode None Game No. 37 Rogue 37 Adventurer 0 Explorer 0 Win Type - Total 5 Types 4/0/0/1/0/0/0/0/0 Lore% 47 Gallery% 51 Achievement% 47 Wizard Run 0 Options --------- Layout 1 ASCII 0 Keyboard 0 Movement Mouse Keybinds 0 Fullscreen 1 Font 24/Smallcaps Map View 50x35 Zoom Use 0% Tactical HUD 1 Map Filters NONE Filters NONE Steam 0 RUN: 4a46bb01-6155-482f-926e-bf8e48e280f6